Cogmind - Beta 11.1 @@@ ROGUE MODE // 2022.12.07 @ 13:42:15 Player: L1l7 Result: Destroyed by S-10 Pest with Light Assault Rifle Performance ------------- Evolutions (1) 500 Regions Visited (3) 600 Robots Destroyed (12) 60 Value Destroyed (196) 196 Prototype IDs (2) 40 Alien Tech Used (0) 0 Bonus (145) 145 TOTAL SCORE: 1541 Bonus ------- Follower Combat Kills 145 Cogmind --------- Core Integrity 0/400 Matter 290/300 Energy 99/100 System Corruption 0% Temperature Cool (0) Movement Core (50) Location -9/Storage Parts ------- > --- POWER (1) -------- (None) > --- PROPULSION (4) --- (None) > --- UTILITY (2) ------ Sensor Array > --- WEAPON (2) ------- (None) > --- INVENTORY (5) ---- Ion Engine Improved Medium Laser EMP Blaster EMP Blaster Peak State ------------ > --- POWER ------------ Ion Engine > --- PROPULSION ------- Flight Unit Flight Unit Flight Unit Flight Unit > --- UTILITY ---------- Small Storage Unit Seismic Detector > --- WEAPON ----------- Particle Cannon Advanced Beam Cannon > --- INVENTORY -------- Ion Engine Light Ion Engine Sensor Array Medium Laser Improved Medium Laser Particle Cannon Advanced Beam Cannon [Rating: 13] Favorites ----------- Power Light Ion Engine Engine Light Ion Engine Propulsion Aluminum Leg Leg Aluminum Leg Flight Unit Flight Unit Utility Small Storage Unit Device Seismic Detector Storage Small Storage Unit Weapon Particle Cannon Energy Gun Medium Laser Energy Cannon Particle Cannon Ballistic Gun Light Assault Rifle Launcher EMP Blaster Special Weapon Mining Laser Build | -11 -10 -9 -9 ------- Run | Scr Mat Mat Sto Slots Evolved 2 | . . 2 . Power . | . . . . Propulsion 2 | . . 2 . Utility . | . . . . Weapon . | . . . . Parts Attached 25 | 7 6 10 2 Power 5 | 1 2 2 . Engine 5 | 1 2 2 . Core . | . . . . Reactor . | . . . . Propulsion 6 | 2 . 4 . Treads . | . . . . Leg 2 | 2 . . . Wheel . | . . . . Hover . | . . . . Flight 4 | . . 4 . Utility 4 | 2 . 1 1 Device 3 | 1 . 1 1 Storage 1 | 1 . . . Processor . | . . . . Hackware . | . . . . Protection . | . . . . Artifact . | . . . . Weapon 10 | 2 4 3 1 Energy Gun 4 | 1 2 1 . Energy Cannon 3 | . 2 1 . Ballistic Gun 1 | 1 . . . Ballistic Cannon . | . . . . Launcher 1 | . . . 1 Special Weapon 1 | . . 1 . Impact Weapon . | . . . . Slashing Weapon . | . . . . Piercing Weapon . | . . . . Special Melee Weapon . | . . . . Unidentified Prototypes 2 | . . 2 . Parts Lost 8 | . 2 1 5 Power 1 | . 1 . . Propulsion 4 | . . 1 3 Utility 1 | . . . 1 Weapon 2 | . 1 . 1 Highest Loss Streak 4 | . 2 1 4 To Critical Strikes . | . . . . Average Slot Usage (%) 86 | . 92 90 48 Engine 7 | . 7 11 3 Leg 19 | . 28 . . Flight 9 | . . 41 19 Device 12 | . 14 10 9 Storage 12 | . 14 11 7 Energy Gun 5 | . 7 . . Energy Cannon 10 | . 12 10 . Ballistic Gun 4 | . 6 . . Special Weapon 1 | . . 4 7 Naked Turns 22 | . . . 22 Heaviest Build 19 | 12 19 19 12 Greatest Support 20 | 20 20 20 12 Greatest Overweight (x) 1 | . . . 1 Average Overweight (x) . | . . . . Largest Inventory Capacity 8 | 8 8 8 8 Average Capacity 7 | 7 8 8 7 Most Carried 8 | 5 8 8 8 Average Carried 6 | 2 7 6 7 Final Capacity 8 | 8 8 8 5 Final Carried 8 | 4 8 8 4 Class Distribution -------------------- 86% | Mutant 13% | Sprinter Dominant Class ---------------- Mutant | -10/Materials Sprinter | -9/Materials Mutant | -9/Storage Resources | -11 -10 -9 -9 ----------- Run | Scr Mat Mat Sto Matter Collected 455 | 282 63 50 60 Remotely . | . . . . Salvage Created 393 | 135 205 53 . Parts 29 | 11 17 1 . Haulers Intercepted 1 | . . 1 . Recyclers Shooed 1 | . 1 . . Parts Field Recycled . | . . . . Retrieved Matter . | . . . . Parts Self-Destructed . | . . . . Prevented . | . . . . Kills | -11 -10 -9 -9 ------- Run | Scr Mat Mat Sto Combat Hostiles Destroyed 5 | . 5 . . Guns 5 | . 5 . . Classes Destroyed 6 | 2 3 1 . Tunneler 3 | 3 . . . Hauler 1 | . . 1 . Recycler 1 | 1 . . . Watcher 2 | . 2 . . Swarmer 2 | . 2 . . Grunt 3 | . 3 . . Best Kill Streak 2 | 2 2 1 . Combat Bots Only 2 | . 2 . . Max Kills in Single Turn 1 | 1 1 1 . Gunslinging . | . . . . Exploded . | . . . . Melee . | . . . . Uniques/NPCs Destroyed . | . . . . Combat | -11 -10 -9 -9 -------- Run | Scr Mat Mat Sto Damage Taken 1008 | . 402 114 492 Core 496 | . 93 41 362 Absorbed by Shields 89 | . . . 89 Regen/Repaired (Parts) 10 | . . 10 . Core Remaining (%) 81 | 100 62 . . Volleys Fired 42 | 12 26 4 . Largest 2 | 2 2 1 . Hottest 136 | 70 136 100 . Shots Fired 80 | 24 52 4 . Gun 70 | 24 46 . . Cannon 7 | . 6 1 . Launcher . | . . . . Special 3 | . . 3 . Kinetic 30 | 12 18 . . Thermal 50 | 12 34 4 . Explosive . | . . . . Electromagnetic . | . . . . Robot Hit Streak 6 | 4 6 3 . Robot Miss Streak 3 | 3 3 . . Penetration Max . | . . . . Secondary Targets 1 | . 1 . . Max Gunslinging Chain 1 | . 1 . . Shots Hit Robots 38 | 11 26 1 . Core Hits 22 | 7 15 . . Critical Kills 1 | . . 1 . Critical Parts Destroyed . | . . . . Critical Strikes 5 | 2 2 1 . Burn 4 | 2 2 . . Meltdown 1 | . . 1 . Melee Attacks . | . . . . Impact . | . . . . Slashing . | . . . . Piercing . | . . . . Sneak Attacks . | . . . . Combat Hostiles . | . . . . Follow-up Attacks . | . . . . Damage Inflicted 476 | 130 326 20 . Guns 389 | 130 259 . . Cannons 80 | . 60 20 . Explosions . | . . . . Melee . | . . . . Ramming 7 | . 7 . . Kinetic 126 | 42 84 . . Thermal 343 | 88 235 20 . Explosive . | . . . . Electromagnetic . | . . . . Impact . | . . . . Slashing . | . . . . Piercing . | . . . . Highest Corruption . | . . . . Average Corruption . | . . . . Corruption Purged . | . . . . Corruption Blocked . | . . . . Overload Shots . | . . . . Overflow Damage . | . . . . Projectiles . | . . . . Explosions . | . . . . Melee . | . . . . Knockbacks . | . . . . Impact . | . . . . Kinetic . | . . . . Secondary . | . . . . Self-Inflicted Damage . | . . . . Shots . | . . . . Rammed . | . . . . Targets Rammed 3 | 1 2 . . Kicked 3 | 1 2 . . Crushed . | . . . . Highest Temperature 228 | 90 228 69 . Average Temperature 58 | 40 72 33 . Received Heat Transfer 403 | . 144 63 196 Siege Activations . | . . . . Robots Corrupted . | . . . . Combat Hostiles . | . . . . Parts Fried . | . . . . Impact Corruptions . | . . . . Robots Melted 1 | . . 1 . Combat Hostiles . | . . . . Parts Melted 2 | 2 . . . Heat Transferred 1221 | 407 777 37 . Parts Sabotaged . | . . . . Parts Stolen . | . . . . Parts Stripped . | . . . . Power Chain Reactions . | . . . . Missiles Intercepted . | . . . . Alert | -11 -10 -9 -9 ------- Run | Scr Mat Mat Sto Peak Influence 229 | 20 202 72 229 Initial 29 | . 13 1 29 Average 42 | 8 44 21 95 Maximum Alert Level 1 | . 1 . 1 Low Security (%) 99 | 100 99 100 99 Level 1 . | . . . . Level 2 . | . . . . Level 3 . | . . . . Level 4 . | . . . . Level 5 . | . . . . High Security . | . . . . Max Security . | . . . . Squads Dispatched 7 | . 1 3 3 Investigation 2 | . . 2 . Extermination . | . . . . Reinforcement 2 | . 1 1 . Assault 2 | . . . 2 Garrison 1 | . . . 1 Intercept . | . . . . Searches Triggered . | . . . . Construction Impeded . | . . . . Haulers Reinforced . | . . . . Active Scanning Responses . | . . . . Cargo Convoy Interrupts . | . . . . Stealth | -11 -10 -9 -9 --------- Run | Scr Mat Mat Sto Distress Signals 3 | . 2 . 1 Communications Jammed . | . . . . Distress Signals . | . . . . Times Spotted 49 | . 16 13 20 Peak Tracking Total 15 | . 5 15 10 Tactical Retreats 4 | . 2 . 2 Traps | -11 -10 -9 -9 ------- Run | Scr Mat Mat Sto Traps Triggered 3 | . . 1 2 Indirectly . | . . . . Trap Hack Attempts . | . . . . Triggered . | . . . . Disarmed . | . . . . Reprogrammed 1 | . 1 . . Reused . | . . . . Traps Extracted . | . . . . Installed . | . . . . Triggered . | . . . . Machines | -11 -10 -9 -9 ---------- Run | Scr Mat Mat Sto Machines Disabled . | . . . . Max in Single Turn . | . . . . Machines Sabotaged . | . . . . Garrisons Compromised . | . . . . Overloaded Fab Kills . | . . . . Hacking | -11 -10 -9 -9 --------- Run | Scr Mat Mat Sto Machines Accessed 8 | . 2 5 1 Terminals 6 | . 2 4 . Fabricators . | . . . . Repair Stations 1 | . . 1 . Recycling Units . | . . . . Scanalyzers . | . . . . Garrison Access 1 | . . . 1 Total Hacks 21 | . 8 12 1 Successful 14 | . 7 6 1 Failed 7 | . 1 6 . Catastrophic 1 | . . 1 . Database Lockouts . | . . . . Manual . | . . . . Terminals 18 | . 8 10 . Fabricators . | . . . . Repair Stations 2 | . . 2 . Recycling Units . | . . . . Scanalyzers . | . . . . Garrison Access 1 | . . . 1 Terminal Hacks 11 | . 7 4 . Record 2 | . . 2 . Alert Level 1 | . 1 . . Locate Traps 1 | . 1 . . Reprogram Traps 2 | . 2 . . Dispatch Records 2 | . 1 1 . Patrol Status 1 | . 1 . . Investigation Status 1 | . . 1 . Registered Components 1 | . 1 . . Fabricator Hacks . | . . . . Repair Station Hacks 2 | . . 2 . Scan Component 1 | . . 1 . Repair 1 | . . 1 . Recycling Unit Hacks . | . . . . Scanalyzer . | . . . . Garrison Access Hacks 1 | . . . 1 Unlock Access 1 | . . . 1 Unauthorized Hacks . | . . . . Terminals . | . . . . Fabricators . | . . . . Repair Stations . | . . . . Recycling Units . | . . . . Scanalyzers . | . . . . Garrison Access . | . . . . Data Cores Recovered . | . . . . Used . | . . . . Hacking Detections 6 | . 2 4 . Full Trace Events 1 | . . 1 . Feedback Events . | . . . . Feedback Blocked . | . . . . Robot Schematics Acquired . | . . . . Robots Built . | . . . . Authchips . | . . . . Time . | . . . . Total Robot Build Rating . | . . . . Part Schematics Acquired . | . . . . Parts Built . | . . . . Authchips . | . . . . Time . | . . . . Total Part Build Rating . | . . . . Parts Repaired 1 | . . 1 . Time 26 | . . 26 . Parts Recycled . | . . . . Recycled Matter . | . . . . Retrieved Matter . | . . . . Retrieved Components . | . . . . Parts Scanalyzed . | . . . . Part Schematics Acquired . | . . . . Parts Damaged . | . . . . Bothacking | -11 -10 -9 -9 ------------ Run | Scr Mat Mat Sto Used RIF Installer . | . . . . Robots Hacked . | . . . . Non-combat . | . . . . Combat . | . . . . Robot Hacks Applied . | . . . . Relay Couplers Released . | . . . . Fabnet Peak Effective % . | . . . . Robots Rewired . | . . . . Allies Hacked . | . . . . Hacks Repelled . | . . . . Allies | -11 -10 -9 -9 -------- Run | Scr Mat Mat Sto Total Allies 2 | . . . 2 Largest Group 2 | . . . 2 Highest-Rated Group 62 | . . . 62 Highest-Rated Ally 31 | . . . 31 Total Orders . | . . . . Ally Attacks 23 | . . . 23 Total Damage 385 | . . . 385 Kills 5 | . . . 5 Allies Corrupted . | . . . . Allies Melted . | . . . . Intel | -11 -10 -9 -9 ------- Run | Scr Mat Mat Sto Robot Analysis Total . | . . . . Derelict Logs Recovered . | . . . . Drone Launches . | . . . . Drone Recoveries . | . . . . Exploration | -11 -10 -9 -9 ------------- Run | Scr Mat Mat Sto Turns Passed 1688 | 204 1038 259 187 Spaces Moved 1236 | 135 512 430 159 Core 82 | 18 . . 64 Treads . | . . . . Legs 637 | 117 512 8 . Wheels . | . . . . Hover . | . . . . Flight 517 | . . 422 95 Fastest Speed 31 | 50 120 31 34 Average Speed 78 | 110 120 32 42 Slowest Speed 120 | 120 120 120 117 Overloaded Moves . | . . . . Propulsion Burnouts . | . . . . Robots Hopped 10 | . . 7 3 Cave-ins Triggered . | . . . . Exploration Rate (%) 29 | 5 53 34 25 Regions Visited 3 Branch Regions 1 Pre-discovered Areas . | . . . . Known Exits Taken . | . . . . Unknown Exits Taken 3 | 1 1 1 . Scrap Searched . | . . . . Spaces Dug 3 | . . 3 . Terrain Destroyed 3 | . . 3 . Melee . | . . . . Projectile 3 | . . 3 . AOE . | . . . . Terrain Rammed . | . . . . Walls Destroyed . | . . . . Machines Disabled . | . . . . Actions | -11 -10 -9 -9 --------- Run | Scr Mat Mat Sto Total 1872 | 169 890 534 279 Wait 480 | . 307 79 94 Move 1214 | 134 511 415 154 Hop 9 | . . 7 2 Pick Up 38 | 13 13 9 3 Fast Attach . | . . . . Attach 25 | 7 6 10 2 Detach 4 | . . 3 1 Swap . | . . . . Drop 21 | 2 7 7 5 Fire 42 | 12 26 4 . Melee . | . . . . Ram . | . . . . Kick 3 | 1 2 . . Crush . | . . . . Escape Stasis 18 | . . . 18 Rewire 18 | . 18 . . Trap . | . . . . Miscellaneous . | . . . . Route ------- -11/Scrapyard -10/Materials (discovered 2 exits: *Mat / [*Min]) -9/Materials (discovered 3 exits: [*Mat] / [*Min] / *Sto) -9/Storage (discovered 1 exit: Gar) History --------- Turn | Location | Event 2 | -11/Scrapyard | Discovered new exit (range 16) 205 | -11/Scrapyard | Entered Materials 301 | -10/Materials | Build established: Mutant 699 | -10/Materials | Discovered new exit (range 16) 1204 | -10/Materials | Discovered new exit (range 14) 1243 | -10/Materials | Entered another Materials area 1243 | -9/Materials | Evolved 2 slots: Propulsion x2 1336 | -9/Materials | Repaired Seismic Detector 1385 | -9/Materials | Discovered new exit (range 9) 1497 | -9/Materials | Discovered new exit (range 16) 1501 | -9/Materials | Discovered new exit (range 8) 1502 | -9/Materials | Entered Storage 1507 | -9/Storage | Identified exit to Garrison 1569 | -9/Storage | Met a pair of Derelict thieves 1613 | -9/Storage | Garrison activated, responded to threat 1647 | -9/Storage | Core integrity fell below 50% 1653 | -9/Storage | Core integrity fell below 20% 1673 | -9/Storage | Lost 4 parts (2n1u1w) 1689 | -9/Storage | Destroyed by S-10 Pest with Light Assault Rifle Last Messages --------------- Triggered Stasis Trap. A bubble of rippling energy engulfs the area. Field strength at 94. Field strength at 88. Seismic Detector destroyed. Field strength at 76. C-30 ARC bursts open, deploying its payload. G-47 Trooper unfolds itself. B-36 Bruiser unfolds itself. G-34 Mercenary unfolds itself. I-25 Savior unfolds itself. Field strength at 65. Field strength at 56. Field strength at 50. Field strength at 33. Field strength at 23. Field strength at 14. Stasis field depleted. Critical hit (Burn: +37). K-01 Serf destroyed. Map ----- +----------------------------------------------------+ | ????????????????????????????????????????????????# | | ????????????????????????????????????????????????# | | ????????????????????????????????????????????????#] | | ????????????????????????????????????????????????# | | ????????????????????????????????????????????????# | | ????????????????????????????????????????????????#] | | ????????????????????????????????????????????????## | | ?????????????????????????????????????????????????? | | ?????????????????????????????????????????????????? | | ?????????????????????????????????????????????????? | | ?????????????????????????????????????????????????? | | ?????????????????????????????????????????????????? | | ?????????????????????????????????????????????????? | | ?????????????????????????????????????????????????? | | ?????????????????????????????????????????????????? | | ?????????????????????????????????????????????????? | | ?????????????????????????????????????????????????? | | ?????????????????????????????????????????????????? | | ?????????????????????????????????????????????????? | | ?????????????????????????????????????????????????? | | ?????????????????????????????????????????????????? | | ?????????????????"???????????????????????????????? | | ????????????????""" ?????????????????????????????? | | ??????????????# """ ""???????????????????#???????? | | ??????????????# ################ #####???? | | ??????????????+ sus /@ +??? | | ??????????????# s ####### #?????????? | | ??????????????# s !????????# #?????????? | | ??????????????# ??????????# +?????????? | | ??????????????####???????????#####+#####?????????? | | ?????????????????????????????# ? #?????????? | | ?????????????????????????????# ] #?????????? | | ?????????????????????????????# ? ! #?????????? | | ?????????????????????????????# ! #?????????? | | ?????????????????????????????######/#####????????? | | ???????????????????????????????# ? #????????? | | ???????????????????????????????# """ #######??? | | ???????????????????????????????# """"?" # #### | | ???????????????????????????????# "????" # | | ???????????????????????????????# "????" + % | | ???????????????????????????????# "?"""" # ! | | ???????????????????????????????# """ # #### | | ???????????????????????????????# #######? | | ???????????????????????????????# #?????# | | ???????????????????????????????##########?????# | | ??????????????????????????????????????????????# | | ??????????????????????????????????????????????# | | ??????????????????????????????????????????????# | | ??????????????????????????????????????????????# | | ??????????????????????????????????????????????# | +----------------------------------------------------+ Best States ------------- Heat Dissipation 28 Energy Generation 10 Energy Capacity 250 Matter Stores 300 Matter Capacity 300 Sight Range 16 Robot Scan Range 14 Terrain Scan Density 10 Evasion (%) 63 Item Schematics ----------------- None Robot Schematics ------------------ None Fabricated ------------ Nothing Alien Tech Used ----------------- None Achievements -------------- None Challenges ------------ None Game ------ Seed ThunderTitaniumBox Manual? 0 Play Time 00:23:05 Cumulative 17.0 hours Start 2022.12.07 @ 13:19:31 End 2022.12.07 @ 13:42:15 Sessions 1 Manual Loads 0 Difficulty Rogue Special Mode None Game No. 32 Rogue 32 Adventurer 0 Explorer 0 Win Type - Total 0 Types 0/0/0/0/0/0/0/0/0 Lore% 16 Gallery% 20 Achievement% 17 Wizard Run 0 Options --------- ASCII 0 Keyboard 0 Movement Arrows Keybinds 0 Fullscreen 2 Font 16/SmallcapsGlow Map View 76x50 Tactical HUD 0 Map Filters NONE Filters NONE Steam 1 RUN: 6b257fd0-c654-4458-a11e-081925edf972